fUST/lending_fUST_20240225
["ID","MTS","AMOUNT","RATE_DAILY","PERIOD"]
[315097745,1708811450162,-500.0,0.00022304,2]
[315097746,1708811450171,-1312.47,0.00022304,2]
[315097747,1708811450181,-768.71,0.00022304,2]
[315097748,1708811450190,-1240.38,0.00022304,2]
[315097749,1708811450200,-500.0,0.00022304,2]
[315097750,1708811450213,-718.93,0.00022304,2]
[315097751,1708811450222,-614.57,0.00022305,2]
[315097752,1708811450231,-1214.08,0.00022305,2]
[315097753,1708811450241,-624.26,0.00022305,2]
[315097754,1708811450250,-1185.72,0.00022305,2]
[315097755,1708811450260,-545.07,0.00022305,2]
[315097756,1708811450269,-1043.59,0.00022305,2]
[315097757,1708811450279,-1352.89,0.00022305,2]
[315097758,1708811450290,-4508.58,0.00022305,2]
[315097759,1708811450300,-1885.33,0.00022305,2]
[315097760,1708811450310,-936.35,0.00022305,2]
[315097761,1708811450320,-13839.7117478,0.0002231,2]
[315097762,1708811450330,-50000.0,0.0002235,2]
[315097763,1708811450340,-300.0,0.00022367,2]
[315097764,1708811450349,-50000.0,0.00022372,2]
[315097765,1708811450359,-50000.0,0.00022383,2]
[315097766,1708811450368,-50000.0,0.00022383,2]
[315097767,1708811450378,-151.0,0.00022383,2]
[315097768,1708811450387,-1558.68382965,0.00022383,2]
[315097770,1708812430147,-166.666666,0.00019178,2]
[315097771,1708812430169,-163.38875591,0.00019454,2]
[315097772,1708812430189,-109.92211809,0.00019553,3]
[315097773,1708812570099,-311.3848696,0.00018774,2]
[315097774,1708812570120,-149.72805221,0.00019178,2]
[315097891,1708812639869,-232.01427009,0.000189,2]
[315097892,1708812639879,-16.93861379,0.00019178,2]
[315097893,1708812639888,-1723.18,0.00019553,3]
[315097894,1708812639898,-6027.15,0.00019562,2]
[315097895,1708812639907,-500.0,0.00019562,2]
[315097896,1708812639916,-500.0,0.00019563,2]
[315097897,1708812639926,-500.0,0.00019563,2]
[315097899,1708812639935,-500.0,0.00019563,2]
[315097900,1708812639946,-500.0,0.00019563,2]
[315097901,1708812639956,-500.0,0.00019563,2]
[315097902,1708812639965,-500.0,0.00019563,2]
[315097903,1708812639974,-500.0,0.00019563,2]
[315097904,1708812639983,-634.75000754,0.00019563,2]
[315097905,1708812639994,-500.0,0.00019563,2]
[315097906,1708812640004,-549.24329572,0.00019563,2]
[315097907,1708812640013,-453.0367065,0.00019563,2]
[315097908,1708812640025,-502.48437314,0.00019563,2]
[315097909,1708812640034,-500.0,0.00019563,2]
[315097911,1708812640043,-500.0,0.00019563,2]
[315097912,1708812640052,-645.50007399,0.00019563,2]
[315097914,1708812640061,-500.44649528,0.00019563,2]
[315097915,1708812640070,-500.0,0.00019563,2]
[315097916,1708812640080,-500.0,0.00019563,2]
[315097917,1708812640090,-500.0,0.00019563,2]
[315097918,1708812640103,-500.0,0.00019563,2]
[315097919,1708812640113,-501.85083767,0.00019563,2]
[315097920,1708812640122,-500.0,0.00019563,2]
[315097921,1708812640131,-500.0,0.00019563,2]
[315097922,1708812640141,-470.59177166,0.00019563,2]
[315097924,1708812640150,-500.0,0.00019563,2]
[315097925,1708812640160,-500.0,0.00019563,2]
[315097926,1708812640170,-500.0,0.00019563,2]
[315097927,1708812640181,-500.0,0.00019563,2]
[315097928,1708812640191,-504.84228172,0.00019563,2]
[315097929,1708812640200,-550.59,0.00019563,2]
[315097930,1708812640209,-500.0,0.00019563,2]
[315097932,1708812640218,-500.0,0.00019563,2]
[315097933,1708812640227,-500.0,0.00019563,2]
[315097934,1708812640236,-1268.72,0.00019563,2]
[315097935,1708812640245,-500.0,0.00019563,2]
[315097936,1708812640254,-500.0,0.00019563,2]
[315097937,1708812640263,-640.57,0.00019563,2]
[315097939,1708812640272,-500.0,0.00019563,2]
[315097940,1708812640281,-500.0,0.00019563,2]
[315097941,1708812640290,-1149.43,0.00019563,2]
[315097942,1708812640299,-501.04972736,0.00019563,2]
[315097943,1708812640308,-501.0634752,0.00019563,2]
[315097944,1708812640317,-500.0,0.00019563,2]
[315097946,1708812640326,-500.0,0.00019563,2]
[315097947,1708812640335,-500.0,0.00019563,2]
[315097948,1708812640344,-500.0,0.00019563,2]
[315097949,1708812640353,-352.51950847,0.00019563,2]
[315097950,1708812640362,-500.0,0.00019563,2]
[315097951,1708812640372,-638.44153413,0.00019563,2]
[315097952,1708812640381,-659.93,0.00019563,2]
[315097954,1708812640390,-500.0,0.00019563,2]
[315097956,1708812640399,-500.0,0.00019563,2]
[315097958,1708812640408,-500.0,0.00019563,2]
[315097959,1708812640417,-500.0,0.00019563,2]
[315097960,1708812640426,-151.0,0.00019563,2]
[315097961,1708812640435,-500.0,0.00019563,2]
[315097962,1708812640444,-500.0,0.00019563,2]
[315097963,1708812640453,-500.0,0.00019563,2]
[315097964,1708812640462,-717.11,0.00019563,2]
[315097965,1708812640472,-566.56018408,0.00019563,2]
[315097966,1708812640481,-500.0,0.00019563,2]
[315097967,1708812640491,-539.35675995,0.00019563,2]
[315097968,1708812640500,-500.0,0.00019563,2]
[315097969,1708812640509,-643.29706333,0.00019563,2]
[315097970,1708812640518,-500.0,0.00019563,2]
[315097971,1708812640527,-719.19,0.00019563,2]
[315097972,1708812640536,-500.0,0.00019563,2]
[315097973,1708812640546,-761.7,0.00019563,2]
[315097974,1708812640555,-501.25023183,0.00019563,2]
[315097975,1708812640564,-500.0,0.00019563,2]
[315097976,1708812640573,-500.0,0.00019563,2]
[315097977,1708812640582,-500.0,0.00019563,2]
[315097978,1708812640591,-960.78,0.00019563,2]
[315097979,1708812640601,-500.0,0.00019563,2]
[315097980,1708812640610,-500.0,0.00019563,2]
[315097981,1708812640619,-1242.28,0.00019563,2]
[315097982,1708812640628,-500.0,0.00019563,2]
[315097983,1708812640638,-500.0,0.00019563,2]
[315097984,1708812640647,-500.0,0.00019563,2]
[315097985,1708812640656,-500.0,0.00019563,2]
[315097986,1708812640665,-500.0,0.00019563,2]
[315097987,1708812640674,-641.97,0.00019563,2]
[315097988,1708812640683,-500.0,0.00019563,2]
[315097989,1708812640693,-500.0,0.00019563,2]
[315097990,1708812640702,-4983.61,0.00019563,2]
[315097991,1708812640711,-500.65767125,0.00019563,2]
[315097992,1708812640720,-500.0,0.00019563,2]
[315097993,1708812640730,-500.0,0.00019563,2]
[315097994,1708812640739,-500.0,0.00019563,2]
[315097995,1708812640749,-500.0,0.00019563,2]
[315097996,1708812640758,-500.0,0.00019563,2]
[315097997,1708812640768,-500.0,0.00019563,2]
[315097998,1708812640777,-500.0,0.00019563,2]
[315097999,1708812640786,-500.0,0.00019563,2]
[315098000,1708812640795,-500.0,0.00019563,2]
[315098001,1708812640805,-282.88303232,0.00019563,2]
[315098002,1708812640814,-4136.39,0.00019563,2]
[315098003,1708812640823,-500.0,0.00019563,2]
[315098004,1708812640833,-500.0,0.00019563,2]
[315098005,1708812640842,-492.29549158,0.00019563,2]
[315098006,1708812640852,-501.00930831,0.00019563,2]
[315098007,1708812640862,-502.20275581,0.00019563,2]
[315098008,1708812640871,-500.0,0.00019563,2]
[315098009,1708812640881,-528.09,0.00019563,2]
[315098010,1708812640890,-1660.68,0.00019563,2]
[315098011,1708812640900,-500.0,0.00019563,2]
[315098012,1708812640909,-500.0,0.00019563,2]
[315098013,1708812640918,-500.0,0.00019563,2]
[315098014,1708812640932,-500.0,0.00019563,2]
[315098015,1708812640949,-484.78361843,0.00019563,2]
[315098016,1708812640961,-500.0,0.00019563,2]
[315098017,1708812640974,-500.0,0.00019563,2]
[315098018,1708812640988,-500.0,0.00019563,2]
[315098019,1708812641000,-500.0,0.00019563,2]
[315098020,1708812641010,-2874.18,0.00019563,2]
[315098021,1708812641020,-500.90031616,0.00019563,2]
[315098022,1708812641031,-500.0,0.00019563,2]
[315098024,1708812641043,-500.0,0.00019563,2]
[315098026,1708812641053,-4925.24,0.00019563,2]
[315098027,1708812641064,-500.0,0.00019563,2]
[315098028,1708812641076,-500.0,0.00019563,2]
[315098029,1708812641088,-500.0,0.00019563,2]
[315098031,1708812641100,-500.0,0.00019563,2]
[315098032,1708812641112,-500.0,0.00019563,2]
[315098033,1708812641123,-500.0,0.00019563,2]
[315098034,1708812641135,-500.0,0.00019563,2]
[315098035,1708812641147,-1148.41,0.00019563,2]
[315098036,1708812641158,-400.00000001,0.00019563,2]
[315098037,1708812641169,-556.06890107,0.00019563,2]
[315098038,1708812641180,-500.0,0.00019563,2]
[315098039,1708812641191,-1075.75,0.00019563,2]
[315098040,1708812641203,-500.0,0.00019563,2]
[315098041,1708812641214,-617.78113522,0.00019563,2]
[315098042,1708812641225,-500.0,0.00019563,2]
[315098043,1708812641237,-500.0,0.00019563,2]
[315098044,1708812641248,-780.29,0.00019563,2]
[315098045,1708812641260,-672.62,0.00019563,2]
[315098046,1708812641270,-500.0,0.00019563,2]
[315098047,1708812641282,-500.0,0.00019563,2]
[315098048,1708812641294,-500.0,0.00019563,2]
[315098049,1708812641305,-500.0,0.00019563,2]
[315098050,1708812641315,-500.0,0.00019563,2]
[315098051,1708812641325,-500.0,0.00019563,2]
[315098052,1708812641336,-500.0,0.00019563,2]
[315098053,1708812641347,-500.0,0.00019563,2]
[315098054,1708812641361,-500.0,0.00019563,2]
[315098055,1708812641373,-500.0,0.00019563,2]
[315098056,1708812641384,-507.90795314,0.00019563,2]
[315098057,1708812641395,-500.0,0.00019563,2]
[315098058,1708812641407,-500.0,0.00019563,2]
[315098059,1708812641418,-588.7512666,0.00019563,2]
[315098060,1708812641429,-500.0,0.00019563,2]
[315098061,1708812641441,-500.0,0.00019563,2]
[315098062,1708812641452,-1137.31,0.00019563,2]
[315098063,1708812641463,-500.0,0.00019563,2]
[315098064,1708812641476,-500.0,0.00019563,2]
[315098065,1708812641489,-500.0,0.00019563,2]
[315098066,1708812641502,-500.0,0.00019564,2]
[315098067,1708812641513,-500.0,0.00019564,2]
[315098068,1708812641525,-366.74895436,0.00019564,2]
[315098069,1708812641537,-500.0,0.00019564,2]
[315098070,1708812641549,-500.0,0.00019564,2]
[315098071,1708812641561,-500.0,0.00019564,2]
[315098072,1708812641573,-500.0,0.00019564,2]
[315098073,1708812641585,-500.0,0.00019564,2]
[315098074,1708812641596,-500.0,0.00019564,2]
[315098075,1708812641607,-500.0,0.00019564,2]
[315098076,1708812641618,-500.0,0.00019564,2]
[315098077,1708812641629,-500.0,0.00019564,2]
[315098078,1708812641639,-500.0,0.00019564,2]
[315098079,1708812641649,-500.0,0.00019564,2]
[315098080,1708812641659,-478.69691622,0.00019564,2]
[315098081,1708812641670,-500.0,0.00019564,2]
[315098082,1708812641682,-500.0,0.00019564,2]
[315098083,1708812641694,-500.0,0.00019564,2]
[315098084,1708812641706,-303.24755095,0.00019564,2]
[315098085,1708812641717,-500.0,0.00019564,2]
[315098086,1708812641727,-232.87720135,0.00019564,2]
[315098087,1708812641738,-500.0,0.00019564,2]
[315098088,1708812641749,-500.0,0.00019564,2]
[315098089,1708812641760,-225.36992675,0.00019564,2]
[315098090,1708812641770,-364.20317653,0.00019564,2]
[315098091,1708812641781,-500.0,0.00019564,2]
[315098092,1708812641791,-500.0,0.00019564,2]
[315098093,1708812641801,-500.0,0.00019564,2]
[315098094,1708812641812,-500.0,0.00019564,2]
[315098095,1708812641823,-500.0,0.00019564,2]
[315098096,1708812641834,-377.76735061,0.00019564,2]
[315098097,1708812641845,-500.0,0.00019564,2]
[315098098,1708812641855,-500.0,0.00019564,2]
[315098099,1708812641867,-500.0,0.00019564,2]
[315098100,1708812641877,-500.0,0.00019564,2]
[315098101,1708812641888,-500.0,0.00019564,2]
[315098102,1708812641898,-396.59778107,0.00019564,2]
[315098103,1708812641909,-500.0,0.00019564,2]
[315098104,1708812641919,-500.0,0.00019564,2]
[315098105,1708812641930,-500.0,0.00019564,2]
[315098106,1708812641942,-500.0,0.00019564,2]
[315098107,1708812641955,-500.0,0.00019564,2]
[315098108,1708812641966,-500.0,0.00019564,2]
[315098109,1708812641976,-500.0,0.00019564,2]
[315098110,1708812641988,-368.39663625,0.00019564,2]
[315098111,1708812641999,-500.0,0.00019564,2]
[315098112,1708812642011,-500.0,0.00019564,2]
[315098113,1708812642022,-571.29194225,0.00019564,2]
[315098114,1708812642033,-500.0,0.00019564,2]
[315098115,1708812642044,-500.0,0.00019564,2]
[315098116,1708812642054,-500.0,0.00019564,2]
[315098117,1708812642065,-500.0,0.00019564,2]
[315098118,1708812642076,-500.0,0.00019564,2]
[315098119,1708812642086,-500.0,0.00019564,2]
[315098120,1708812642097,-500.0,0.00019564,2]
[315098121,1708812642107,-500.0,0.00019564,2]
[315098122,1708812642118,-500.0,0.00019564,2]
[315098123,1708812642129,-500.0,0.00019564,2]
[315098124,1708812642139,-500.0,0.00019564,2]
[315098125,1708812642149,-500.0,0.00019564,2]
[315098126,1708812642160,-503.08902147,0.00019564,2]
[315098127,1708812642170,-500.0,0.00019564,2]
[315098128,1708812642180,-500.0,0.00019564,2]
[315098129,1708812642191,-500.0,0.00019564,2]
[315098130,1708812642201,-500.0,0.00019564,2]
[315098131,1708812642212,-500.36762449,0.00019564,2]
[315098132,1708812642223,-500.95783052,0.00019564,2]
[315098133,1708812642234,-187.1546475,0.00019564,2]
[315098134,1708812642245,-500.0,0.00019564,2]
[315098135,1708812642255,-500.0,0.00019564,2]
[315098136,1708812642266,-500.0,0.00019564,2]
[315098137,1708812642277,-500.0,0.00019564,2]
[315098138,1708812642287,-500.0,0.00019564,2]
[315098140,1708812642298,-500.0,0.00019564,2]
[315098142,1708812642307,-500.0,0.00019564,2]
[315098143,1708812642318,-500.0,0.00019564,2]
[315098144,1708812642328,-500.0,0.00019564,2]
[315098145,1708812642339,-530.22,0.00019564,2]
[315098146,1708812642351,-500.0,0.00019564,2]
[315098147,1708812642361,-500.0,0.00019564,2]
[315098148,1708812642371,-500.0,0.00019564,2]
[315098149,1708812642382,-607.14745584,0.00019564,2]
[315098151,1708812642527,-500.0,0.00019564,2]
[315098153,1708812642537,-500.0,0.00019564,2]
[315098155,1708812642546,-500.0,0.00019564,2]
[315098156,1708812642555,-500.0,0.00019564,2]
[315098157,1708812642565,-500.0,0.00019564,2]
[315098158,1708812642575,-591.28690162,0.00019564,2]
[315098159,1708812642584,-514.05907315,0.00019564,2]
[315098160,1708812642593,-500.0,0.00019564,2]
[315098161,1708812642604,-500.0,0.00019564,2]
[315098162,1708812642613,-500.0,0.00019564,2]
[315098163,1708812642622,-511.56479016,0.00019564,2]
[315098164,1708812642631,-500.0,0.00019564,2]
[315098165,1708812642641,-500.0,0.00019564,2]
[315098166,1708812642651,-500.0,0.00019564,2]
[315098167,1708812642662,-224.1570089,0.00019564,2]
[315098168,1708812642673,-408.01181932,0.00019564,2]
[315098169,1708812642683,-500.0,0.00019564,2]
[315098171,1708812642694,-500.0,0.00019564,2]
[315098172,1708812642704,-500.0,0.00019564,2]
[315098174,1708812642714,-514.95706502,0.00019564,2]
[315098176,1708812642724,-500.0,0.00019564,2]
[315098178,1708812642735,-500.0,0.00019564,2]
[315098180,1708812642745,-550.59,0.00019564,2]
[315098182,1708812642755,-550.59,0.00019564,2]
[315098184,1708812642765,-500.0,0.00019564,2]
[315098186,1708812642774,-500.0,0.00019564,2]
[315098187,1708812642784,-500.0,0.00019564,2]
[315098189,1708812642794,-500.0,0.00019564,2]
[315098191,1708812642805,-500.0,0.00019564,2]
[315098193,1708812642815,-166.666666,0.00019627,2]
[315098194,1708812642825,-399.72411655,0.00019737,2]
[315098197,1708812642834,-550.59,0.00019834,2]
[315098198,1708812642844,-550.59,0.00019834,2]
[315098200,1708812642854,-500.0,0.00019834,2]
[315098201,1708812642865,-500.0,0.00019834,2]
[315098202,1708812642876,-500.0,0.00019834,2]
[315098203,1708812642886,-500.0,0.00019834,2]
[315098204,1708812642895,-500.0,0.00019834,2]
[315098205,1708812642906,-500.0,0.00019834,2]
[315098206,1708812642916,-500.0,0.00019834,2]
[315098207,1708812642927,-500.0,0.00019834,2]
[315098208,1708812642938,-500.0,0.00019834,2]
[315098209,1708812642951,-500.0,0.00019834,2]
[315098210,1708812642961,-500.0,0.00019834,2]
[315098211,1708812642971,-500.0,0.00019834,2]
[315098212,1708812642980,-500.0,0.00019834,2]
[315098213,1708812642991,-597.68918172,0.00019834,2]
[315098214,1708812643000,-500.0,0.00019834,2]
[315098215,1708812643009,-500.0,0.00019834,2]
[315098216,1708812643019,-500.0,0.00019834,2]
[315098217,1708812643031,-500.0,0.00019834,2]
[315098218,1708812643040,-245.03063393,0.00019834,2]
[315098219,1708812643050,-500.0,0.00019834,2]
[315098220,1708812643059,-500.0,0.00019834,2]
[315098221,1708812643068,-500.0,0.00019834,2]
[315098222,1708812643077,-500.0,0.00019834,2]
[315098223,1708812643086,-500.0,0.00019834,2]
[315098224,1708812643096,-500.0,0.00019834,2]
[315098225,1708812643106,-500.0,0.00019834,2]
[315098226,1708812643115,-500.0,0.00019834,2]
[315098227,1708812643125,-500.0,0.00019834,2]
[315098228,1708812643134,-500.0,0.00019834,2]
[315098229,1708812643143,-500.0,0.00019834,2]
[315098230,1708812643153,-500.0,0.00019834,2]
[315098231,1708812643163,-500.0,0.00019834,2]
[315098232,1708812643173,-500.0,0.00019834,2]
[315098233,1708812643182,-500.0,0.00019834,2]
[315098234,1708812643191,-500.0,0.00019834,2]
[315098235,1708812643201,-500.0,0.00019834,2]
[315098236,1708812643211,-500.0,0.00019834,2]
[315098237,1708812643220,-500.0,0.00019834,2]
[315098238,1708812643230,-500.0,0.00019834,2]
[315098239,1708812643239,-465.64115032,0.00019834,2]
[315098240,1708812643249,-500.0,0.00019834,2]
[315098241,1708812643258,-500.0,0.00019834,2]
[315098242,1708812643268,-500.0,0.00019834,2]
[315098243,1708812643277,-500.0,0.00019834,2]
[315098244,1708812643287,-500.0,0.00019834,2]
[315098245,1708812643296,-500.0,0.00019834,2]
[315098246,1708812643306,-500.0,0.00019834,2]
[315098247,1708812643315,-500.0,0.00019834,2]
[315098248,1708812643325,-500.0,0.00019834,2]
[315098249,1708812643334,-500.0,0.00019834,2]
[315098250,1708812643344,-500.0,0.00019834,2]
[315098251,1708812643354,-500.0,0.00019834,2]
[315098252,1708812643364,-500.0,0.00019834,2]
[315098253,1708812643373,-500.0,0.00019834,2]
[315098254,1708812643383,-500.0,0.00019834,2]
[315098255,1708812643392,-500.0,0.00019834,2]
[315098256,1708812643402,-500.0,0.00019834,2]
[315098257,1708812643411,-500.0,0.00019834,2]
[315098258,1708812643420,-500.0,0.00019834,2]
[315098259,1708812643429,-500.0,0.00019834,2]
[315098260,1708812643439,-500.0,0.00019834,2]
[315098261,1708812643448,-500.0,0.00019834,2]
[315098262,1708812643457,-500.0,0.00019834,2]
[315098263,1708812643466,-500.0,0.00019834,2]
[315098264,1708812643475,-500.0,0.00019834,2]
[315098265,1708812643485,-500.0,0.00019834,2]
[315098266,1708812643495,-500.0,0.00019834,2]
[315098267,1708812643504,-500.0,0.00019834,2]
[315098268,1708812643515,-500.0,0.00019834,2]
[315098269,1708812643524,-500.0,0.00019834,2]
[315098270,1708812643533,-500.0,0.00019834,2]
[315098271,1708812643542,-500.0,0.00019834,2]
[315098272,1708812643551,-500.0,0.00019834,2]
[315098273,1708812643560,-500.0,0.00019834,2]
[315098274,1708812643569,-500.0,0.00019834,2]
[315098275,1708812643578,-500.0,0.00019834,2]
[315098276,1708812643587,-500.0,0.00019834,2]
[315098277,1708812643600,-500.0,0.00019834,2]
[315098278,1708812643609,-500.0,0.00019834,2]
[315098279,1708812643618,-500.0,0.00019834,2]
[315098280,1708812643627,-500.0,0.00019834,2]
[315098281,1708812643637,-500.0,0.00019834,2]
[315098282,1708812643647,-415.73842084,0.00019834,2]
[315098283,1708812643656,-500.0,0.00019834,2]
[315098284,1708812643665,-500.0,0.00019834,2]
[315098285,1708812643674,-500.0,0.00019834,2]
[315098286,1708812643683,-289.6885695,0.00019834,2]
[315098287,1708812643693,-500.0,0.00019834,2]
[315098288,1708812643702,-500.0,0.00019836,2]
[315098289,1708812643711,-500.0,0.00019836,2]
[315098290,1708812643720,-502.74547419,0.00019836,2]
[315098291,1708812643729,-6027.15,0.00019836,2]
[315098292,1708812643739,-500.0,0.00019836,2]
[315098293,1708812643748,-500.0,0.00019837,2]
[315098294,1708812643757,-500.71978356,0.00019837,2]
[315098295,1708812643767,-500.79878127,0.00019837,2]
[315098296,1708812643776,-500.0,0.00019837,2]
[315098297,1708812643786,-177.18,0.00019837,2]
[315098298,1708812643795,-500.0,0.00019837,2]
[315098299,1708812643805,-500.0,0.00019837,2]
[315098300,1708812643814,-611.99,0.00019837,2]
[315098301,1708812643823,-500.0,0.00019837,2]
[315098302,1708812643832,-500.0,0.00019837,2]
[315098303,1708812643842,-500.0,0.00019837,2]
[315098304,1708812643852,-165.15562463,0.00019837,2]
[315098305,1708812643861,-1268.72,0.00019837,2]
[315098306,1708812643870,-159.48453292,0.00019837,2]
[315098307,1708812643880,-640.57,0.00019837,2]
[315098308,1708812643889,-500.0,0.00019837,2]
[315098309,1708812643899,-1149.43,0.00019837,2]
[315098310,1708812643908,-238.94,0.00019837,2]
[315098311,1708812643917,-659.93,0.00019837,2]
[315098312,1708812643926,-500.0,0.00019837,2]
[315098313,1708812643936,-234.72141157,0.00019837,2]
[315098314,1708812643946,-717.11,0.00019837,2]
[315098315,1708812643955,-550.19075802,0.00019837,2]
[315098316,1708812643964,-500.0,0.00019837,2]
[315098317,1708812643974,-719.19,0.00019837,2]
[315098318,1708812643984,-761.7,0.00019837,2]
[315098319,1708812643994,-500.0,0.00019837,2]
[315098320,1708812644004,-500.0,0.00019837,2]
[315098321,1708812644013,-960.78,0.00019837,2]
[315098322,1708812644025,-1242.28,0.00019837,2]
[315098323,1708812644034,-500.0,0.00019837,2]
[315098324,1708812644044,-500.0,0.00019837,2]
[315098325,1708812644053,-641.97,0.00019837,2]
[315098326,1708812644063,-585.43173339,0.00019837,2]
[315098327,1708812644072,-4983.61,0.00019837,2]
[315098328,1708812644081,-500.0,0.00019837,2]
[315098329,1708812644091,-500.0,0.00019837,2]
[315098330,1708812644100,-524.26935218,0.00019837,2]
[315098331,1708812644109,-500.0,0.00019837,2]
[315098332,1708812644118,-500.0,0.00019837,2]
[315098333,1708812644127,-500.0,0.00019837,2]
[315098334,1708812644136,-500.0,0.00019837,2]
[315098335,1708812644145,-500.0,0.00019837,2]
[315098336,1708812644155,-4136.39,0.00019837,2]
[315098337,1708812644164,-500.0,0.00019837,2]
[315098338,1708812644173,-500.0,0.00019837,2]
[315098339,1708812644183,-528.09,0.00019837,2]
[315098340,1708812644192,-1660.68,0.00019837,2]
[315098341,1708812644201,-500.0,0.00019837,2]
[315098342,1708812644211,-500.0,0.00019837,2]
[315098343,1708812644220,-500.0,0.00019837,2]
[315098344,1708812644229,-500.0,0.00019837,2]
[315098345,1708812644239,-500.11809813,0.00019837,2]
[315098346,1708812644248,-500.0,0.00019837,2]
[315098347,1708812644257,-2874.18,0.00019837,2]
[315098348,1708812644266,-4925.24,0.00019837,2]
[315098349,1708812644275,-500.0,0.00019837,2]
[315098350,1708812644284,-500.0,0.00019837,2]
[315098351,1708812644294,-500.0,0.00019837,2]
[315098352,1708812644303,-1148.41,0.00019837,2]
[315098353,1708812644312,-1075.75,0.00019837,2]
[315098354,1708812644322,-500.0,0.00019837,2]
[315098355,1708812644332,-500.0,0.00019837,2]
[315098356,1708812644341,-780.29,0.00019837,2]
[315098357,1708812644350,-672.62,0.00019837,2]
[315098358,1708812644359,-500.0,0.00019837,2]
[315098359,1708812644369,-500.0,0.00019837,2]
[315098360,1708812644378,-500.0,0.00019837,2]
[315098361,1708812644387,-583.12894878,0.00019837,2]
[315098362,1708812644396,-500.0,0.00019837,2]
[315098363,1708812644405,-500.0,0.00019837,2]
[315098364,1708812644414,-500.0,0.00019837,2]
[315098365,1708812644423,-500.0,0.00019837,2]
[315098366,1708812644433,-1137.31,0.00019837,2]
[315098367,1708812644442,-500.0,0.00019837,2]
[315098368,1708812644451,-581.22510241,0.00019837,2]
[315098369,1708812644460,-500.0,0.00019838,2]
[315098370,1708812644469,-500.0,0.00019838,2]
[315098371,1708812644478,-500.0,0.00019838,2]
[315098372,1708812644487,-500.0,0.00019838,2]
[315098373,1708812644497,-500.0,0.00019838,2]
[315098374,1708812644506,-500.0,0.00019838,2]
[315098375,1708812644516,-500.0,0.00019838,2]
[315098376,1708812644525,-500.0,0.00019838,2]
[315098377,1708812644534,-500.0,0.00019838,2]
[315098378,1708812644544,-500.0,0.00019838,2]
[315098379,1708812644553,-518.08991757,0.00019838,2]
[315098380,1708812644563,-287.44073996,0.00019838,2]
[315098381,1708812644572,-500.0,0.00019838,2]
[315098382,1708812644581,-450.62,0.00019838,2]
[315098383,1708812644590,-500.0,0.00019838,2]
[315098384,1708812644600,-197.68,0.00019838,2]
[315098385,1708812644609,-477.25,0.00019838,2]
[315098386,1708812644618,-500.0,0.00019838,2]
[315098387,1708812644627,-500.0,0.00019838,2]
[315098388,1708812644636,-500.0,0.00019838,2]
[315098389,1708812644646,-500.0,0.00019838,2]
[315098390,1708812644655,-537.11,0.00019838,2]
[315098391,1708812644664,-500.0,0.00019838,2]
[315098392,1708812644673,-500.0,0.00019838,2]
[315098393,1708812644683,-500.0,0.00019838,2]